[Event "17th Memorial Lezcano Montalvo 2025"]
[Site "Gran Canaria"]
[Date "2025.04.14"]
[Round "3.47"]
[White "Hernandez De Armas, Leonardo"]
[Black "Gonzalez Perdomo, Sergio"]
[Result "0-1"]
[Annotator "NA COMBH"]
[ECO "B56"]
[WhiteElo "1645"]
[BlackElo "1880"]
[PlyCount "40"]
[EventDate "2025.04.13"]
[EventType "swiss"]
[EventCountry "ESP"]
[SourceTitle "playchess.com"]
[Source "ChessBase"]
[SourceQuality "1"]
[TimeControl "5400+30"]

1. e4 {[%emt 0:00:03]} c5 {[%emt 0:00:09]} 2. Nf3 {[%emt 0:00:08]} Nc6 {[%emt 0:00:07]} 3. d4 {[%emt 0:00:08]} cxd4 {[%emt 0:00:14]} 4. Nxd4 {[%emt 0:00:14]} d6 {[%emt 0:00:06]} 5. Nc3 {[%emt 0:00:24]} Nf6 {[%emt 0:00:08]} 6. f3 {[%emt 0:00:47]} e5 {[%emt 0:00:18]} 7. Nb3 {[%emt 0:00:20]} Be6 {[%emt 0:00:15]} 8. Bg5 {[%emt 0:01:05]} Be7 {[%emt 0:01:14]} 9. Bxf6 {[%emt 0:01:27]} gxf6 {[%emt 0:01:56]} 10. Nd5 {[%emt 0:02:26]} a5 {[%emt 0:02:17]} 11. a4 {[%emt 0:06:33]} f5 {[%emt 0:06:59]} 12. Bd3 {[%emt 0:18:35]} Rg8 {[%emt 0:12:34]} 13. Rg1 {[%emt 0:12:52]} Bh4+ {[%emt 0:08:36]} 14. Kf1 {[%emt 0:06:02]} f4 {[%emt 0:15:04]} 15. Qd2 {[%emt 0:06:59]} Rg6 {[%emt 0:04:56]} 16. Bb5 {[%emt 0:06:27]} Kf8 {[%emt 0:02:31]} 17. Nc1 {[%emt 0:05:36]} Nd4 {[%emt 0:01:56]} 18. c3 {[%emt 0:01:15]} Nxf3 {[%emt 0:01:22]} 19. gxf3 {[%emt 0:01:04]} Bh3+ {[%emt 0:00:22]} 20. Ke2 {[%emt 0:00:15]} Rxg1 {[%emt 0:00:09]} 0-1

[Event "17th Memorial Lezcano Montalvo 2025"]
[Site "Gran Canaria"]
[Date "2025.04.14"]
[Round "3.48"]
[White "Posso Cangrejo, Sergio David"]
[Black "Roca Marrero, Fernando"]
[Result "0-1"]
[Annotator "NA RC"]
[ECO "A43"]
[WhiteElo "1878"]
[BlackElo "1617"]
[PlyCount "112"]
[EventDate "2025.04.13"]
[EventType "swiss"]
[EventCountry "ESP"]
[SourceTitle "playchess.com"]
[Source "ChessBase"]
[SourceQuality "1"]
[TimeControl "5400+30"]

1. e4 {[%emt 0:00:15]} d6 {[%emt 0:00:20]} 2. d4 {[%emt 0:00:34]} g6 {[%emt 0:00:05]} 3. Nc3 {[%emt 0:00:05]} Bg7 {[%emt 0:00:05]} 4. f4 {[%emt 0:00:06]} Nd7 {[%emt 0:06:25]} 5. Nf3 {[%emt 0:01:20]} c5 {[%emt 0:00:52]} 6. d5 {[%emt 0:02:09]} a6 {[%emt 0:00:47]} 7. a4 {[%emt 0:00:57]} Nh6 {[%emt 0:10:00]} 8. Bd3 {[%emt 0:02:32]} O-O {[%emt 0:01:31]} 9. O-O {[%emt 0:00:14]} Re8 {[%emt 0:03:02]} 10. Qe1 {[%emt 0:03:39]} Nf8 {[%emt 0:03:00]} 11. Qg3 {[%emt 0:04:40]} f6 {[%emt 0:04:51]} 12. Bd2 {[%emt 0:04:57]} Nf7 {[%emt 0:03:24]} 13. Rae1 {[%emt 0:02:13]} e5 {[%emt 0:01:56]} 14. fxe5 {[%emt 0:03:44]} fxe5 {[%emt 0:05:29]} 15. h4 {[%emt 0:03:11]} h6 {[%emt 0:01:50]} 16. Rf2 {[%emt 0:01:40]} b6 {[%emt 0:00:09]} 17. Ref1 {[%emt 0:00:22]} Ra7 {[%emt 0:00:27]} 18. Nh2 {[%emt 0:01:12]} Ree7 {[%emt 0:07:27]} 19. Be2 {[%emt 0:01:29]} Nh8 {[%emt 0:02:04]} 20. Bg4 {[%emt 0:06:24]} Rf7 {[%emt 0:01:30]} 21. Bxc8 {[%emt 0:02:07]} Qxc8 {[%emt 0:00:09]} 22. Ng4 {[%emt 0:00:30]} Rxf2 {[%emt 0:00:16]} 23. Rxf2 {[%emt 0:00:20]} Nf7 {[%emt 0:06:25]} 24. Qh3 {[%emt 0:03:19]} Qd8 {[%emt 0:00:25]} 25. Ne2 {[%emt 0:00:50]} g5 {[%emt 0:04:50]} 26. Ng3 {[%emt 0:03:25]} gxh4 {[%emt 0:04:43]} 27. Nh5 {[%emt 0:13:22]} Ng5 {[%emt 0:04:49]} 28. Ngf6+ {[%emt 0:02:35]} Kh8 {[%emt 0:03:51]} 29. Qxh4 {[%emt 0:00:13]} Ng6 {[%emt 0:02:14]} 30. Qg4 {[%emt 0:09:14]} Nf4 {[%emt 0:09:31]} 31. Nxf4 {[%emt 0:10:24]} exf4 {[%emt 0:00:58]} 32. Rxf4 {[%emt 0:00:58]} Rf7 {[%emt 0:02:43]} 33. Nh5 {[%emt 0:02:34]} Bd4+ {[%emt 0:03:43]} 34. Kh1 {[%emt 0:00:18]} Qf8 {[%emt 0:00:39]} 35. Rxf7 {[%emt 0:02:05]} Qxf7 {[%emt 0:00:22]} 36. Ng3 {[%emt 0:08:26]} Be5 {[%emt 0:03:16]} 37. Bc3 {[%emt 0:02:19]} Bxc3 {[%emt 0:01:27]} 38. bxc3 {[%emt 0:00:01]} Qf2 {[%emt 0:02:09]} 39. Qc8+ {[%emt 0:01:20]} Kh7 {[%emt 0:00:19]} 40. Qd7+ {[%emt 0:00:17]} Nf7 {[%emt 0:00:17]} 41. Kh2 {[%emt 0:02:18]} Qf6 {[%emt 0:00:19]} 42. Qf5+ {[%emt 0:01:58]} Qxf5 {[%emt 0:00:10]} 43. Nxf5 {[%emt 0:00:02]} Kg6 {[%emt 0:00:12]} 44. Kg3 {[%emt 0:00:58]} Kg5 {[%emt 0:00:22]} 45. c4 {[%emt 0:00:42]} h5 {[%emt 0:00:24]} 46. c3 {[%emt 0:00:15]} a5 {[%emt 0:00:27]} 47. Kf3 {[%emt 0:00:55]} Ne5+ {[%emt 0:00:12]} 48. Ke2 {[%emt 0:00:27]} Nxc4 {[%emt 0:00:24]} 49. g3 {[%emt 0:00:16]} b5 {[%emt 0:00:14]} 50. axb5 {[%emt 0:00:33]} a4 {[%emt 0:00:07]} 51. Ng7 {[%emt 0:00:45]} a3 {[%emt 0:01:00]} 52. Ne6+ {[%emt 0:00:17]} Kg4 {[%emt 0:00:47]} 53. Kd3 {[%emt 0:00:30]} a2 {[%emt 0:01:46]} 54. Kxc4 {[%emt 0:00:38]} a1=Q {[%emt 0:00:08]} 55. Nxc5 {[%emt 0:00:26]} Qa2+ {[%emt 0:00:51]} 56. Kd4 {[%emt 0:00:24]} Qf2+ {[%emt 0:00:46]} 0-1

[Event "17th Memorial Lezcano Montalvo 2025"]
[Site "Gran Canaria"]
[Date "2025.04.14"]
[Round "3.49"]
[White "Cattani, Cloe"]
[Black "Ludishev, Artem"]
[Result "0-1"]
[Annotator "NA COMBH"]
[ECO "B50"]
[WhiteElo "1614"]
[BlackElo "1874"]
[PlyCount "68"]
[EventDate "2025.04.13"]
[EventType "swiss"]
[EventCountry "ESP"]
[SourceTitle "playchess.com"]
[Source "ChessBase"]
[SourceQuality "1"]
[TimeControl "5400+30"]

1. e4 {[%emt 0:00:34]} c5 {[%emt 0:00:10]} 2. Nf3 {[%emt 0:00:14]} d6 {[%emt 0:00:35]} 3. c3 {[%emt 0:01:03]} Nf6 {[%emt 0:00:15]} 4. Bd3 {[%emt 0:02:29]} Nc6 {[%emt 0:01:10]} 5. Bc2 {[%emt 0:01:06]} Bg4 {[%emt 0:07:32]} 6. d3 {[%emt 0:02:00]} g6 {[%emt 0:00:23]} 7. Nbd2 {[%emt 0:00:53]} Bg7 {[%emt 0:00:13]} 8. h3 {[%emt 0:00:22]} Bd7 {[%emt 0:00:27]} 9. O-O {[%emt 0:01:07]} b5 {[%emt 0:00:59]} 10. Re1 {[%emt 0:01:34]} O-O {[%emt 0:01:44]} 11. Nf1 {[%emt 0:02:19]} b4 {[%emt 0:03:43]} 12. d4 {[%emt 0:08:42]} Qc7 {[%emt 0:11:28]} 13. Ng3 {[%emt 0:07:16]} e5 {[%emt 0:02:52]} 14. d5 {[%emt 0:06:26]} Ne7 {[%emt 0:03:26]} 15. Be3 {[%emt 0:04:16]} h6 {[%emt 0:05:56]} 16. Qd2 {[%emt 0:03:07]} bxc3 {[%emt 0:00:51]} 17. bxc3 {[%emt 0:00:52]} g5 {[%emt 0:01:49]} 18. Kh2 {[%emt 0:07:11]} Ng6 {[%emt 0:07:22]} 19. Rh1 {[%emt 0:04:59]} Rab8 {[%emt 0:02:03]} 20. Bd1 {[%emt 0:04:11]} Rb7 {[%emt 0:19:14]} 21. Be2 {[%emt 0:17:36]} Rfb8 {[%emt 0:00:18]} 22. Rhc1 {[%emt 0:06:01]} Rb2 {[%emt 0:02:19]} 23. Rc2 {[%emt 0:00:51]} Qb7 {[%emt 0:01:04]} 24. Rxb2 {[%emt 0:01:12]} Qxb2 {[%emt 0:00:03]} 25. Qxb2 {[%emt 0:02:09]} Rxb2 {[%emt 0:00:56]} 26. a3 {[%emt 0:02:06]} Nf4 {[%emt 0:01:10]} 27. Bc4 {[%emt 0:02:56]} g4 {[%emt 0:08:53]} 28. Nh4 {[%emt 0:02:52]} gxh3 {[%emt 0:00:53]} 29. gxh3 {[%emt 0:00:25]} Nxh3 {[%emt 0:01:17]} 30. Kg2 {[%emt 0:02:10]} Ng4 {[%emt 0:02:05]} 31. Ra2 {[%emt 0:00:36]} Nxe3+ {[%emt 0:00:14]} 32. Kh2 {[%emt 0:00:51]} Ng4+ {[%emt 0:15:06]} 33. Kg2 {[%emt 0:06:34]} Nf6 34. Kh2 Ng4+ {[%emt 0:01:00]} 0-1

[Event "17th Memorial Lezcano Montalvo 2025"]
[Site "Gran Canaria"]
[Date "2025.04.14"]
[Round "3.50"]
[White "Quintero Hernandez, Marcos Jesus"]
[Black "Delgado Armas, Francisco David"]
[Result "0-1"]
[Annotator "NA COMBH"]
[ECO "A38"]
[WhiteElo "1874"]
[BlackElo "1608"]
[PlyCount "98"]
[EventDate "2025.04.13"]
[EventType "swiss"]
[EventCountry "ESP"]
[SourceTitle "playchess.com"]
[Source "ChessBase"]
[SourceQuality "1"]
[TimeControl "5400+30"]

1. c4 {[%emt 0:01:13]} c5 {[%emt 0:00:53]} 2. Nc3 {[%emt 0:00:06]} Nc6 {[%emt 0:00:25]} 3. Nf3 {[%emt 0:00:05]} g6 {[%emt 0:02:07]} 4. g3 {[%emt 0:00:46]} b6 {[%emt 0:00:44]} 5. Bg2 {[%emt 0:00:39]} Bg7 {[%emt 0:02:36]} 6. O-O {[%emt 0:00:35]} Bb7 {[%emt 0:00:15]} 7. Rb1 {[%emt 1:30:36]} Nf6 {[%emt 0:03:09]} 8. d3 {[%emt 0:00:00]} O-O {[%emt 0:02:12]} 9. a3 {[%emt 0:00:00]} d6 {[%emt 0:04:16]} 10. Ne1 {[%emt 0:00:00]} Qd7 {[%emt 0:02:18]} 11. e3 {[%emt 0:00:00]} Rad8 {[%emt 0:03:46]} 12. b4 {[%emt 0:00:00]} e5 {[%emt 0:11:02]} 13. Nc2 {[%emt 0:00:00]} Ne7 {[%emt 0:05:17]} 14. Bxb7 {[%emt 0:00:00]} Qxb7 {[%emt 0:00:06]} 15. e4 {[%emt 0:00:00]} Qd7 {[%emt 0:00:39]} 16. Bg5 {[%emt 0:00:00]} Qh3 {[%emt 0:05:23]} 17. Ne3 {[%emt 0:00:00]} h6 {[%emt 0:01:18]} 18. Bxf6 {[%emt 0:00:00]} Bxf6 {[%emt 0:02:38]} 19. Ncd5 {[%emt 0:00:00]} Nxd5 {[%emt 0:00:12]} 20. Nxd5 {[%emt 0:00:00]} Bg5 {[%emt 0:01:39]} 21. Qe2 {[%emt 0:00:00]} f5 {[%emt 0:00:40]} 22. f3 {[%emt 0:00:00]} f4 {[%emt 0:01:09]} 23. Qg2 {[%emt 0:00:00]} Qd7 {[%emt 0:02:20]} 24. Kh1 {[%emt 0:00:00]} Kg7 {[%emt 0:04:07]} 25. b5 {[%emt 0:00:00]} Rf7 {[%emt 0:04:36]} 26. a4 {[%emt 0:00:00]} Rdf8 {[%emt 0:01:43]} 27. g4 {[%emt 0:00:00]} Bd8 {[%emt 0:03:18]} 28. Rf2 {[%emt 0:00:00]} Rh8 {[%emt 0:00:37]} 29. Ra2 {[%emt 0:00:00]} g5 {[%emt 0:01:36]} 30. Rab2 {[%emt 0:00:00]} Kg6 {[%emt 0:01:02]} 31. a5 {[%emt 0:00:00]} h5 {[%emt 0:00:28]} 32. gxh5+ {[%emt 0:00:00]} Rxh5 {[%emt 0:00:12]} 33. axb6 {[%emt 0:00:00]} axb6 {[%emt 0:00:33]} 34. Ra1 {[%emt 0:00:00]} Rfh7 {[%emt 0:00:14]} 35. Qf1 {[%emt 0:00:00]} Rh3 {[%emt 0:03:47]} 36. Ra6 {[%emt 0:00:00]} Qb7 {[%emt 0:05:36]} 37. Rba2 {[%emt 0:00:00]} Qb8 {[%emt 0:05:06]} 38. Rg2 {[%emt 0:00:00]} Qb7 {[%emt 0:00:58]} 39. Kg1 {[%emt 0:00:00]} Rh8 {[%emt 0:00:50]} 40. Qe2 {[%emt 0:00:00]} Kf7 {[%emt 0:04:09]} 41. Qa2 {[%emt 0:00:00]} Kg6 {[%emt 0:02:02]} 42. Ra7 {[%emt 0:00:00]} Qc8 {[%emt 0:00:11]} 43. Qe2 {[%emt 0:00:00]} R8h7 {[%emt 0:02:34]} 44. Ra6 {[%emt 0:00:00]} Qb8 {[%emt 0:00:56]} 45. Qf1 {[%emt 0:00:00]} R3h4 {[%emt 0:01:14]} 46. Qa1 {[%emt 0:00:00]} Qc8 {[%emt 0:00:47]} 47. Ra8 {[%emt 0:00:00]} Qh3 {[%emt 0:00:39]} 48. Rxd8 {[%emt 0:00:00]} Qxg2+ {[%emt 0:00:15]} 49. Kxg2 {[%emt 0:00:00]} Rxh2+ {[%emt 0:00:08]} 0-1

[Event "17th Memorial Lezcano Montalvo 2025"]
[Site "Gran Canaria"]
[Date "2025.04.14"]
[Round "3.51"]
[White "De Gabriel Stella, Alejandro"]
[Black "Henriquez Garcia, David"]
[Result "0-1"]
[Annotator "NA COMBH"]
[ECO "C01"]
[WhiteElo "1606"]
[BlackElo "1869"]
[PlyCount "46"]
[EventDate "2025.04.13"]
[EventType "swiss"]
[EventCountry "ESP"]
[SourceTitle "playchess.com"]
[Source "ChessBase"]
[SourceQuality "1"]
[TimeControl "5400+30"]

1. e4 {[%emt 1:31:00]} e6 {[%emt 1:31:00]} 2. d4 {[%emt 0:00:30]} d5 {[%emt 0:00:30]} 3. exd5 {[%emt 0:00:30]} exd5 {[%emt 0:00:30]} 4. Bd3 {[%emt 0:00:30]} Bd6 {[%emt 0:00:30]} 5. c3 {[%emt 0:00:00]} c6 {[%emt 0:00:00]} 6. Nd2 {[%emt 0:00:00]} Ne7 {[%emt 0:00:00]} 7. h3 {[%emt 0:00:00]} Bf5 {[%emt 0:00:00]} 8. Qc2 {[%emt 0:00:00]} Qd7 {[%emt 0:00:00]} 9. Ngf3 {[%emt 0:00:00]} Qe6+ {[%emt 0:00:00]} 10. Kf1 {[%emt 0:00:00]} Qg6 {[%emt 0:00:00]} 11. Bxf5 {[%emt 0:00:00]} Nxf5 {[%emt 0:00:00]} 12. Kg1 {[%emt 0:00:00]} Nd7 {[%emt 0:00:00]} 13. Nf1 {[%emt 0:00:00]} O-O-O {[%emt 0:00:00]} 14. Ne3 {[%emt 0:00:00]} Nxe3 {[%emt 0:00:00]} 15. Qxg6 {[%emt 0:00:00]} hxg6 {[%emt 0:00:00]} 16. Bxe3 {[%emt 0:00:00]} Rde8 {[%emt 0:00:00]} 17. Re1 {[%emt 0:00:00]} Nf6 {[%emt 0:00:00]} 18. Ng5 {[%emt 0:00:00]} Re7 {[%emt 0:00:00]} 19. Bd2 {[%emt 0:00:00]} Rhe8 {[%emt 0:00:00]} 20. Rxe7 {[%emt 0:00:00]} Rxe7 {[%emt 0:00:00]} 21. Kf1 {[%emt 0:00:00]} Nh5 {[%emt 0:00:00]} 22. Be3 {[%emt 0:00:00]} Bf4 {[%emt 0:00:00]} 23. g4 {[%emt 0:00:00]} Bxe3 {[%emt 0:00:00]} 0-1

[Event "17th Memorial Lezcano Montalvo 2025"]
[Site "Gran Canaria"]
[Date "2025.04.14"]
[Round "3.52"]
[White "Acosta Gonzalez, Juan Dionisio"]
[Black "Alonso Perez, Alfredo"]
[Result "0-1"]
[Annotator "NA COMBH"]
[ECO "A45"]
[WhiteElo "1421"]
[BlackElo "1853"]
[PlyCount "62"]
[EventDate "2025.04.13"]
[EventType "swiss"]
[EventCountry "ESP"]
[SourceTitle "playchess.com"]
[Source "ChessBase"]
[SourceQuality "1"]
[TimeControl "5400+30"]

1. d4 {[%emt 0:00:30]} Nf6 {[%emt 0:02:30]} 2. e3 {[%emt 0:00:01]} e6 {[%emt 0:02:42]} 3. g3 {[%emt 0:00:43]} c5 {[%emt 0:03:36]} 4. Bg2 {[%emt 0:01:09]} Nc6 {[%emt 0:01:47]} 5. Nh3 {[%emt 0:01:19]} Qb6 {[%emt 0:08:44]} 6. d5 {[%emt 0:01:42]} exd5 {[%emt 0:02:31]} 7. Bxd5 {[%emt 0:06:26]} Nxd5 {[%emt 0:01:37]} 8. Qxd5 {[%emt 0:01:25]} Ne7 {[%emt 0:02:03]} 9. Qg2 {[%emt 0:02:33]} g6 {[%emt 0:05:40]} 10. c3 {[%emt 0:04:36]} Qa6 {[%emt 0:01:36]} 11. Na3 {[%emt 0:03:15]} Bg7 {[%emt 0:00:41]} 12. c4 {[%emt 0:01:43]} O-O {[%emt 0:02:39]} 13. Nb5 {[%emt 0:03:08]} d5 {[%emt 0:01:18]} 14. Nc7 {[%emt 0:01:29]} Qa5+ {[%emt 0:00:08]} 15. Bd2 {[%emt 0:00:09]} Qxc7 {[%emt 0:00:09]} 16. cxd5 {[%emt 0:00:14]} Nxd5 {[%emt 0:01:06]} 17. O-O {[%emt 0:02:07]} b6 {[%emt 0:00:00]} 18. e4 {[%emt 0:00:59]} Ne7 {[%emt 0:03:16]} 19. Bf4 {[%emt 0:01:14]} Be5 {[%emt 0:03:13]} 20. Rad1 {[%emt 0:01:50]} Ba6 {[%emt 0:01:17]} 21. Rfe1 {[%emt 0:01:40]} Rad8 {[%emt 0:00:34]} 22. Bh6 {[%emt 0:00:49]} Rxd1 {[%emt 0:00:27]} 23. Rxd1 {[%emt 0:00:40]} Rd8 {[%emt 0:00:10]} 24. Rb1 {[%emt 0:01:38]} Qd7 {[%emt 0:01:34]} 25. Qf3 {[%emt 0:00:29]} Qxh3 {[%emt 0:00:21]} 26. Bg5 {[%emt 0:00:36]} Nc6 {[%emt 0:02:24]} 27. Bxd8 {[%emt 0:01:04]} Nxd8 {[%emt 0:00:31]} 28. Rd1 {[%emt 0:00:47]} Ne6 {[%emt 0:01:28]} 29. Qb3 {[%emt 0:01:00]} Nd4 {[%emt 0:00:16]} 30. Qe3 {[%emt 0:02:26]} Be2 {[%emt 0:00:21]} 31. Re1 {[%emt 0:01:34]} Nf3+ {[%emt 0:00:41]} 0-1

[Event "17th Memorial Lezcano Montalvo 2025"]
[Site "Gran Canaria"]
[Date "2025.04.14"]
[Round "3.53"]
[White "Bangiev, Katharina"]
[Black "Vargas Tinoco, Celso Alejandro"]
[Result "1-0"]
[Annotator "NA RC"]
[ECO "B56"]
[WhiteElo "1848"]
[BlackElo "1588"]
[PlyCount "89"]
[EventDate "2025.04.13"]
[EventType "swiss"]
[EventCountry "ESP"]
[SourceTitle "playchess.com"]
[Source "ChessBase"]
[SourceQuality "1"]
[TimeControl "5400+30"]

1. e4 {[%emt 0:00:09]} c5 {[%emt 0:08:16]} 2. Nf3 {[%emt 0:00:47]} d6 {[%emt 0:00:07]} 3. d4 {[%emt 0:00:12]} cxd4 {[%emt 0:00:09]} 4. Nxd4 {[%emt 0:00:03]} Nc6 {[%emt 0:00:13]} 5. g3 {[%emt 0:01:14]} Nf6 {[%emt 0:00:31]} 6. Bg2 {[%emt 0:00:16]} e5 {[%emt 0:03:01]} 7. Ne2 {[%emt 0:00:42]} Be7 {[%emt 0:02:16]} 8. O-O {[%emt 0:00:29]} O-O {[%emt 0:00:05]} 9. Nbc3 {[%emt 0:00:15]} b6 {[%emt 0:01:24]} 10. f4 {[%emt 0:07:56]} Ba6 {[%emt 0:02:30]} 11. Nd5 {[%emt 0:11:51]} Rc8 {[%emt 0:03:23]} 12. c3 {[%emt 0:04:14]} Nb8 {[%emt 0:06:22]} 13. h3 {[%emt 0:09:23]} Nbd7 {[%emt 0:01:54]} 14. Be3 {[%emt 0:21:24]} Rc4 {[%emt 0:00:09]} 15. Qc2 {[%emt 0:01:29]} Nc5 {[%emt 0:04:58]} 16. b3 {[%emt 0:02:12]} Rxe4 {[%emt 0:00:41]} 17. Nxf6+ {[%emt 0:01:12]} Bxf6 {[%emt 0:00:16]} 18. Bxe4 {[%emt 0:00:39]} Nxe4 {[%emt 0:03:07]} 19. Qxe4 {[%emt 0:00:39]} Bxe2 {[%emt 0:00:13]} 20. Rf2 {[%emt 0:02:12]} exf4 {[%emt 0:05:46]} 21. Bxf4 {[%emt 0:02:19]} Re8 {[%emt 0:00:45]} 22. Qc2 {[%emt 0:04:03]} Ba6 {[%emt 0:02:22]} 23. Rd1 {[%emt 0:01:09]} Re6 {[%emt 0:09:38]} 24. Rfd2 {[%emt 0:03:08]} Be7 {[%emt 0:00:56]} 25. Rd4 {[%emt 0:05:43]} g6 {[%emt 0:02:29]} 26. c4 {[%emt 0:01:16]} Qc7 {[%emt 0:01:05]} 27. Re4 {[%emt 0:02:08]} Rxe4 {[%emt 0:02:05]} 28. Qxe4 {[%emt 0:00:06]} Bb7 {[%emt 0:00:24]} 29. Qe2 {[%emt 0:03:13]} Qc6 {[%emt 0:01:45]} 30. Kh2 {[%emt 0:00:52]} Kg7 {[%emt 0:08:34]} 31. Qd2 {[%emt 0:02:41]} g5 {[%emt 0:01:11]} 32. Bxg5 {[%emt 0:00:44]} Bxg5 {[%emt 0:00:20]} 33. Qxg5+ {[%emt 0:00:08]} Kf8 {[%emt 0:03:38]} 34. Qd8+ {[%emt 0:01:45]} Kg7 {[%emt 0:00:37]} 35. Rd5 {[%emt 0:00:50]} f6 {[%emt 0:01:41]} 36. Qxd6 {[%emt 0:01:18]} Kg6 {[%emt 0:03:36]} 37. Qxc6 {[%emt 0:01:16]} Bxc6 {[%emt 0:00:08]} 38. Rd6 {[%emt 0:00:10]} Be4 {[%emt 0:00:27]} 39. Rd7 {[%emt 0:00:31]} a5 {[%emt 0:01:01]} 40. Rd6 {[%emt 0:00:14]} Bb1 {[%emt 0:00:59]} 41. Rxb6 {[%emt 0:00:07]} Bxa2 {[%emt 0:00:08]} 42. c5 {[%emt 0:00:09]} Kf7 {[%emt 0:01:51]} 43. Ra6 {[%emt 0:00:40]} Ke7 {[%emt 0:00:17]} 44. b4 {[%emt 0:00:32]} Bc4 {[%emt 0:00:14]} 45. Rxa5 {[%emt 0:00:11]} 1-0

[Event "17th Memorial Lezcano Montalvo 2025"]
[Site "Gran Canaria"]
[Date "2025.04.14"]
[Round "3.54"]
[White "Pace, Gabriele"]
[Black "Buidoso, Mihai"]
[Result "1-0"]
[Annotator "NA RC"]
[ECO "D10"]
[WhiteElo "1895"]
[BlackElo "1409"]
[PlyCount "100"]
[EventDate "2025.04.13"]
[EventType "swiss"]
[EventCountry "ESP"]
[SourceTitle "playchess.com"]
[Source "ChessBase"]
[SourceQuality "1"]
[TimeControl "5400+30"]

1. d4 {[%emt 0:00:02]} Nf6 {[%emt 0:00:20]} 2. Bf4 {[%emt 1:31:28]} d5 {[%emt 0:01:59]} 3. e3 {[%emt 0:00:00]} Bf5 {[%emt 0:00:45]} 4. c4 {[%emt 0:00:00]} c6 {[%emt 0:01:52]} 5. Qb3 {[%emt 0:00:00]} Bxb1 {[%emt 0:02:59]} 6. Rxb1 {[%emt 0:00:00]} Qa5+ {[%emt 0:02:01]} 7. Qc3 {[%emt 0:00:00]} Qxa2 {[%emt 0:03:05]} 8. Bd3 {[%emt 0:00:00]} dxc4 {[%emt 0:08:56]} 9. Qxc4 {[%emt 0:00:00]} Qxc4 {[%emt 0:00:49]} 10. Bxc4 {[%emt 0:00:00]} e6 {[%emt 0:00:27]} 11. b4 {[%emt 0:00:00]} Be7 {[%emt 0:06:43]} 12. Nf3 {[%emt 0:00:00]} O-O {[%emt 0:01:53]} 13. O-O {[%emt 0:00:00]} Ne4 {[%emt 0:00:37]} 14. Bd3 {[%emt 0:00:00]} Nc3 {[%emt 0:01:25]} 15. Rb3 {[%emt 0:00:00]} Nd5 {[%emt 0:01:07]} 16. Bxb8 {[%emt 0:00:00]} Raxb8 {[%emt 0:01:03]} 17. Ne5 {[%emt 0:00:00]} Rbd8 {[%emt 0:02:19]} 18. b5 {[%emt 0:00:00]} f6 {[%emt 0:05:53]} 19. Nf3 {[%emt 0:00:00]} c5 {[%emt 0:00:00]} 20. Ra1 {[%emt 0:00:00]} Ra8 {[%emt 0:01:45]} 21. Bc4 {[%emt 0:00:00]} Kh8 {[%emt 0:02:09]} 22. e4 {[%emt 0:00:00]} Nc7 {[%emt 0:00:26]} 23. b6 {[%emt 0:00:00]} axb6 {[%emt 0:05:03]} 24. Rxa8 {[%emt 0:00:00]} Rxa8 {[%emt 0:00:04]} 25. Rxb6 {[%emt 0:00:00]} Ra1+ {[%emt 0:01:54]} 26. Bf1 {[%emt 0:00:00]} Ra7 {[%emt 0:05:12]} 27. dxc5 {[%emt 0:00:00]} Bxc5 {[%emt 0:01:49]} 28. Rb2 {[%emt 0:00:00]} b6 {[%emt 0:02:43]} 29. g3 {[%emt 0:00:00]} g5 {[%emt 0:01:57]} 30. Kg2 {[%emt 0:00:00]} h5 {[%emt 0:04:09]} 31. Nd2 {[%emt 0:00:00]} Bd4 {[%emt 0:04:47]} 32. Rc2 {[%emt 0:00:43]} e5 {[%emt 0:02:46]} 33. Nb3 {[%emt 0:01:12]} Ne6 {[%emt 0:08:31]} 34. Rc6 {[%emt 0:01:47]} Ra2 {[%emt 0:02:56]} 35. Nxd4 {[%emt 0:01:48]} Nxd4 {[%emt 0:03:15]} 36. Rxf6 {[%emt 0:03:10]} Nc2 {[%emt 0:02:09]} 37. Bb5 {[%emt 0:05:28]} Kg7 {[%emt 0:01:00]} 38. Rxb6 {[%emt 0:01:18]} g4 {[%emt 0:00:25]} 39. Rb7+ {[%emt 0:01:56]} Kf6 {[%emt 0:00:13]} 40. Rb6+ {[%emt 0:00:02]} Kg5 {[%emt 0:01:09]} 41. Ra6 {[%emt 0:00:15]} Ne3+ {[%emt 0:02:50]} 42. Kg1 {[%emt 0:00:19]} Rb2 {[%emt 0:01:08]} 43. h4+ {[%emt 0:01:45]} gxh3 {[%emt 0:00:34]} 44. Be8 {[%emt 0:00:18]} h2+ {[%emt 0:09:23]} 45. Kxh2 {[%emt 0:00:21]} Rxf2+ {[%emt 0:00:00]} 46. Kh3 {[%emt 0:00:19]} Rf1 {[%emt 0:00:00]} 47. Kh2 {[%emt 0:01:37]} Rf2+ {[%emt 0:01:30]} 48. Kh3 {[%emt 0:00:42]} Rf1 {[%emt 0:00:30]} 49. Kh2 {[%emt 0:00:30]} Ng4+ {[%emt 0:00:30]} 50. Kg2 {[%emt 0:00:30]} Rf2+ {[%emt 0:00:30]} 1-0

[Event "17th Memorial Lezcano Montalvo 2025"]
[Site "Gran Canaria"]
[Date "2025.04.14"]
[Round "3.56"]
[White "Murashkin, Roman G"]
[Black "Grube, Kurt"]
[Result "0-1"]
[Annotator "NA RC"]
[ECO "D02"]
[WhiteElo "2129"]
[BlackElo "1732"]
[PlyCount "52"]
[EventDate "2025.04.13"]
[EventType "swiss"]
[EventCountry "ESP"]
[SourceTitle "playchess.com"]
[Source "ChessBase"]
[SourceQuality "1"]
[TimeControl "5400+30"]

1. d4 {[%emt 0:00:02]} d5 {[%emt 0:00:05]} 2. Bf4 {[%emt 0:00:06]} Nf6 {[%emt 0:00:13]} 3. e3 {[%emt 0:00:10]} Bg4 {[%emt 0:00:36]} 4. Nf3 {[%emt 0:00:22]} e6 {[%emt 0:00:24]} 5. c3 {[%emt 0:00:14]} h6 {[%emt 0:01:00]} 6. Nbd2 {[%emt 0:00:54]} Bd6 {[%emt 0:00:31]} 7. Bg3 {[%emt 0:00:36]} Ne4 {[%emt 0:06:21]} 8. Qa4+ {[%emt 0:04:08]} c6 {[%emt 0:02:19]} 9. Nxe4 {[%emt 0:01:11]} dxe4 {[%emt 0:00:10]} 10. Nd2 {[%emt 0:00:26]} Bxg3 {[%emt 0:04:03]} 11. hxg3 {[%emt 0:00:40]} Bf5 {[%emt 0:00:45]} 12. Qc2 {[%emt 0:01:32]} Qb6 {[%emt 0:06:45]} 13. Nxe4 {[%emt 0:00:58]} Bxe4 {[%emt 0:01:07]} 14. Qxe4 {[%emt 0:00:42]} Qxb2 {[%emt 0:01:50]} 15. Rb1 {[%emt 0:00:58]} Qxc3+ {[%emt 0:00:38]} 16. Kd1 {[%emt 0:00:25]} b6 {[%emt 0:03:53]} 17. Rc1 {[%emt 0:01:46]} Qa5 {[%emt 0:01:50]} 18. Rxc6 {[%emt 0:01:26]} Nxc6 {[%emt 0:02:34]} 19. Qxc6+ {[%emt 0:00:10]} Ke7 {[%emt 0:00:05]} 20. Qc7+ {[%emt 0:03:21]} Kf6 {[%emt 0:01:09]} 21. Rh4 {[%emt 0:17:29]} g5 {[%emt 0:03:12]} 22. Re4 {[%emt 0:04:54]} Rac8 {[%emt 0:02:05]} 23. Qb7 {[%emt 0:01:40]} Qa4+ {[%emt 0:04:18]} 24. Ke2 {[%emt 0:01:29]} Qc4+ {[%emt 0:04:40]} 25. Kf3 {[%emt 0:03:17]} Qxf1 {[%emt 0:00:41]} 26. d5 {[%emt 0:02:30]} Qd1# {[%emt 0:52:16]} 0-1